[Event "Late-Titled-Tuesday-Blitz-February-27-2024"]
[Site "Chess.com"]
[Date "2024.02.27"]
[Round "3"]
[White "The_Machine04"]
[Black "GotCheeseCheckers"]
[Result "1-0"]
[WhiteElo "2813"]
[BlackElo "2546"]
[TimeControl "180+1"]
[EndTime "14:28:17 PST"]
[Termination "The_Machine04 won by resignation"]

1. d4 {[%clk 0:03:00.9]} 1... Nf6 {[%clk 0:02:49.8]} 2. Nf3 {[%clk 0:03:00.8]}
2... b6 {[%clk 0:02:48.7]} 3. Nbd2 {[%clk 0:03:00.7]} 3... Bb7 {[%clk
0:02:48.8]} 4. e3 {[%clk 0:03:01.3]} 4... e6 {[%clk 0:02:49.2]} 5. Bd3 {[%clk
0:03:01.2]} 5... d5 {[%clk 0:02:49.6]} 6. Ne5 {[%clk 0:03:01.3]} 6... Nbd7
{[%clk 0:02:48.6]} 7. f4 {[%clk 0:03:01.5]} 7... c5 {[%clk 0:02:49.2]} 8. c3
{[%clk 0:03:01.5]} 8... Bd6 {[%clk 0:02:45.6]} 9. Qf3 {[%clk 0:03:01.2]} 9...
Qc7 {[%clk 0:02:44.3]} 10. O-O {[%clk 0:03:01.5]} 10... g6 {[%clk 0:02:42.2]}
11. a4 {[%clk 0:02:55]} 11... h5 {[%clk 0:02:40.8]} 12. g3 {[%clk 0:02:54.4]}
12... Rf8 {[%clk 0:02:14.3]} 13. Qg2 {[%clk 0:02:44]} 13... O-O-O {[%clk
0:02:11.3]} 14. a5 {[%clk 0:02:39.7]} 14... Kb8 {[%clk 0:02:08.3]} 15. axb6
{[%clk 0:02:33.2]} 15... axb6 {[%clk 0:02:09.2]} 16. Nb1 {[%clk 0:02:11.6]}
16... c4 {[%clk 0:02:03]} 17. Bc2 {[%clk 0:02:10.2]} 17... Ne4 {[%clk
0:02:01.1]} 18. Na3 {[%clk 0:02:09.5]} 18... Bxa3 {[%clk 0:01:33.3]} 19. Rxa3
{[%clk 0:02:10.4]} 19... Nxe5 {[%clk 0:01:32.8]} 20. fxe5 {[%clk 0:02:09]} 20...
Bc6 {[%clk 0:01:29.5]} 21. Bd2 {[%clk 0:02:06.1]} 21... Kb7 {[%clk 0:01:28.7]}
22. Qe2 {[%clk 0:01:49.5]} 22... Ra8 {[%clk 0:01:28.4]} 23. Rxa8 {[%clk
0:01:45.1]} 23... Rxa8 {[%clk 0:01:29.3]} 24. Bxe4 {[%clk 0:01:45.1]} 24... dxe4
{[%clk 0:01:26.2]} 25. Qxc4 {[%clk 0:01:45.6]} 25... Qd7 {[%clk 0:01:26.6]} 26.
Qb4 {[%clk 0:01:38.1]} 26... Bb5 {[%clk 0:01:22.5]} 27. c4 {[%clk 0:01:35.4]}
27... Bc6 {[%clk 0:01:15.3]} 28. Bc3 {[%clk 0:01:22]} 28... Ra4 {[%clk
0:01:07.4]} 29. Qf8 {[%clk 0:01:20.7]} 29... Qe8 {[%clk 0:01:01.3]} 30. Rxf7+
{[%clk 0:01:18.3]} 30... Ka6 {[%clk 0:01:01.7]} 31. Qxe8 {[%clk 0:01:12.1]}
31... Bxe8 {[%clk 0:01:02.6]} 32. Re7 {[%clk 0:01:12.2]} 32... Bc6 {[%clk
0:01:03.2]} 33. Rxe6 {[%clk 0:00:59.3]} 33... Rxc4 {[%clk 0:01:02.7]} 34. Rxg6
{[%clk 0:00:55.1]} 34... Bd5 {[%clk 0:00:59.3]} 35. Rd6 {[%clk 0:00:54.2]} 35...
Bg8 {[%clk 0:00:49.3]} 36. d5 {[%clk 0:00:44.3]} 36... Kb7 {[%clk 0:00:40.7]}
37. e6 {[%clk 0:00:41.9]} 37... b5 {[%clk 0:00:40.7]} 38. Rd7+ {[%clk
0:00:34.3]} 38... Rc7 {[%clk 0:00:37.3]} 39. Rd8 {[%clk 0:00:25.1]} 39... Bh7
{[%clk 0:00:33.6]} 40. d6 {[%clk 0:00:23]} 1-0

[Event "Late-Titled-Tuesday-Blitz-February-27-2024"]
[Site "Chess.com"]
[Date "2024.02.27"]
[Round "3"]
[White "LikeWater"]
[Black "pooh2012"]
[Result "1-0"]
[WhiteElo "2680"]
[BlackElo "2471"]
[TimeControl "180+1"]
[EndTime "14:28:19 PST"]
[Termination "LikeWater won by resignation"]

1. d4 {[%clk 0:03:00.9]} 1... Nf6 {[%clk 0:02:59.2]} 2. c4 {[%clk 0:02:59.2]}
2... e6 {[%clk 0:02:58.6]} 3. Nc3 {[%clk 0:02:59.1]} 3... Bb4 {[%clk 0:02:57.3]}
4. e3 {[%clk 0:02:59]} 4... O-O {[%clk 0:02:56.1]} 5. Bd3 {[%clk 0:02:59.1]}
5... d5 {[%clk 0:02:56.2]} 6. a3 {[%clk 0:02:59]} 6... Bd6 {[%clk 0:02:54.5]} 7.
Nge2 {[%clk 0:02:54.9]} 7... b6 {[%clk 0:02:49.1]} 8. cxd5 {[%clk 0:02:54.3]}
8... exd5 {[%clk 0:02:48.2]} 9. O-O {[%clk 0:02:54.2]} 9... a5 {[%clk
0:02:46.5]} 10. f3 {[%clk 0:02:50.3]} 10... c5 {[%clk 0:02:39.7]} 11. Nb5 {[%clk
0:02:39]} 11... Be7 {[%clk 0:02:28.2]} 12. Bd2 {[%clk 0:02:22.4]} 12... Ba6
{[%clk 0:02:26.5]} 13. a4 {[%clk 0:02:20.4]} 13... Nc6 {[%clk 0:02:24.1]} 14.
Be1 {[%clk 0:02:20.4]} 14... Nb4 {[%clk 0:02:13]} 15. Nec3 {[%clk 0:02:17.2]}
15... Nxd3 {[%clk 0:02:02.9]} 16. Qxd3 {[%clk 0:02:18.1]} 16... Re8 {[%clk
0:02:00.4]} 17. Bg3 {[%clk 0:02:11.9]} 17... Rc8 {[%clk 0:01:45.4]} 18. Rfe1
{[%clk 0:02:06.4]} 18... Qd7 {[%clk 0:01:38.9]} 19. Rad1 {[%clk 0:02:04.1]}
19... Red8 {[%clk 0:01:10.3]} 20. Be5 {[%clk 0:01:56.2]} 20... Ne8 {[%clk
0:00:47.9]} 21. dxc5 {[%clk 0:01:54.4]} 21... Rxc5 {[%clk 0:00:45.9]} 22. Bd4
{[%clk 0:01:46.7]} 22... Rc6 {[%clk 0:00:43.6]} 23. e4 {[%clk 0:01:40]} 23...
dxe4 {[%clk 0:00:36.8]} 24. Qxe4 {[%clk 0:01:40.9]} 24... Re6 {[%clk 0:00:36.7]}
25. Qg4 {[%clk 0:01:30.9]} 25... Rxe1+ {[%clk 0:00:35.9]} 26. Rxe1 {[%clk
0:01:31.8]} 26... Qxg4 {[%clk 0:00:34.7]} 27. fxg4 {[%clk 0:01:32.7]} 27... Bxb5
{[%clk 0:00:28.7]} 28. Nxb5 {[%clk 0:01:29.7]} 28... Bc5 {[%clk 0:00:21.5]} 29.
Bxc5 {[%clk 0:01:29.4]} 29... bxc5 {[%clk 0:00:22.4]} 30. Re5 {[%clk 0:01:29.3]}
30... Kf8 {[%clk 0:00:21.5]} 31. b3 {[%clk 0:01:17.6]} 31... Rd3 {[%clk
0:00:20.8]} 32. Rxc5 {[%clk 0:01:14.8]} 32... Rxb3 {[%clk 0:00:20.7]} 33. Rc8
{[%clk 0:01:15.3]} 33... Ke7 {[%clk 0:00:19.4]} 34. Ra8 {[%clk 0:01:14.9]} 34...
Rb4 {[%clk 0:00:19.4]} 35. Rxa5 {[%clk 0:01:14.7]} 35... Rxg4 {[%clk 0:00:19.8]}
36. Ra7+ {[%clk 0:01:14.4]} 36... Ke6 {[%clk 0:00:19.4]} 37. Ra8 {[%clk
0:01:13.3]} 37... Nf6 {[%clk 0:00:17.7]} 38. a5 {[%clk 0:01:11.6]} 38... Ra4
{[%clk 0:00:17]} 39. a6 {[%clk 0:01:11.7]} 39... Nd5 {[%clk 0:00:14.1]} 40. a7
{[%clk 0:01:10.4]} 40... Ke7 {[%clk 0:00:12.6]} 41. Rb8 {[%clk 0:01:09.1]} 41...
Nc7 {[%clk 0:00:07.6]} 42. Rb7 {[%clk 0:01:09.3]} 42... Kd8 {[%clk 0:00:05.9]}
43. Rxc7 {[%clk 0:01:09.1]} 1-0

[Event "Late-Titled-Tuesday-Blitz-February-27-2024"]
[Site "Chess.com"]
[Date "2024.02.27"]
[Round "3"]
[White "JaackCamel"]
[Black "OneTrickPony_82"]
[Result "0-1"]
[WhiteElo "2231"]
[BlackElo "2534"]
[TimeControl "180+1"]
[EndTime "14:28:19 PST"]
[Termination "OneTrickPony_82 won by resignation"]

1. d4 {[%clk 0:03:00.9]} 1... Nf6 {[%clk 0:02:59]} 2. c4 {[%clk 0:03:00]} 2...
e6 {[%clk 0:02:59]} 3. Nc3 {[%clk 0:02:59]} 3... d5 {[%clk 0:02:58.6]} 4. cxd5
{[%clk 0:02:58]} 4... exd5 {[%clk 0:02:58.4]} 5. Bg5 {[%clk 0:02:56.9]} 5... Be7
{[%clk 0:02:58.1]} 6. e3 {[%clk 0:02:56.5]} 6... h6 {[%clk 0:02:58.3]} 7. Bh4
{[%clk 0:02:55.4]} 7... O-O {[%clk 0:02:58.2]} 8. Bd3 {[%clk 0:02:54.9]} 8... c6
{[%clk 0:02:58.4]} 9. Qc2 {[%clk 0:02:54.3]} 9... Re8 {[%clk 0:02:58.4]} 10.
Nge2 {[%clk 0:02:53.6]} 10... Nbd7 {[%clk 0:02:57.5]} 11. O-O {[%clk 0:02:52.8]}
11... Nh5 {[%clk 0:02:52.4]} 12. Bxe7 {[%clk 0:02:50.5]} 12... Qxe7 {[%clk
0:02:52.2]} 13. Ng3 {[%clk 0:02:35.9]} 13... Nxg3 {[%clk 0:02:48.5]} 14. hxg3
{[%clk 0:02:35.8]} 14... Qg5 {[%clk 0:02:41.5]} 15. Bh7+ {[%clk 0:02:31.6]}
15... Kh8 {[%clk 0:02:40.7]} 16. Bf5 {[%clk 0:02:31.2]} 16... Nf6 {[%clk
0:02:38.9]} 17. Bxc8 {[%clk 0:02:22.3]} 17... Raxc8 {[%clk 0:02:38.8]} 18. Ne2
{[%clk 0:02:21]} 18... Qg4 {[%clk 0:02:00.1]} 19. Nf4 {[%clk 0:02:04.2]} 19...
g5 {[%clk 0:01:52.9]} 20. Nh3 {[%clk 0:01:42.3]} 20... Re7 {[%clk 0:01:49.7]}
21. Rac1 {[%clk 0:01:39.3]} 21... Ne8 {[%clk 0:01:34.8]} 22. b4 {[%clk
0:01:33.2]} 22... Nd6 {[%clk 0:01:33.3]} 23. a3 {[%clk 0:01:29.2]} 23... Kg7
{[%clk 0:01:32.1]} 24. a4 {[%clk 0:01:26.8]} 24... a6 {[%clk 0:01:31.4]} 25. Qd1
{[%clk 0:01:17]} 25... Qxd1 {[%clk 0:01:29.5]} 26. Rfxd1 {[%clk 0:01:15.3]}
26... Nc4 {[%clk 0:01:07.3]} 27. Kf1 {[%clk 0:01:07.8]} 27... Nb2 {[%clk
0:01:05.3]} 28. Rd2 {[%clk 0:01:04.5]} 28... Nxa4 {[%clk 0:01:05.2]} 29. Ng1
{[%clk 0:01:04.3]} 29... Nb6 {[%clk 0:01:02.5]} 30. Nf3 {[%clk 0:01:04.3]} 30...
Nc4 {[%clk 0:01:01.6]} 31. Rdc2 {[%clk 0:01:03.2]} 31... Rce8 {[%clk 0:00:58.5]}
32. Kg1 {[%clk 0:01:00.4]} 32... f6 {[%clk 0:00:56.4]} 33. Ne1 {[%clk
0:00:58.7]} 33... Ra8 {[%clk 0:00:48.4]} 34. Nd3 {[%clk 0:00:58.6]} 34... a5
{[%clk 0:00:47.5]} 35. bxa5 {[%clk 0:00:56.9]} 35... Rxa5 {[%clk 0:00:45.5]} 36.
Nc5 {[%clk 0:00:56.9]} 36... b6 {[%clk 0:00:41.3]} 37. Nb3 {[%clk 0:00:55.1]}
37... Ra3 {[%clk 0:00:41.7]} 38. Nd2 {[%clk 0:00:53.5]} 38... b5 {[%clk
0:00:38.2]} 39. Nxc4 {[%clk 0:00:51.3]} 39... dxc4 {[%clk 0:00:37.5]} 40. Rb1
{[%clk 0:00:45.9]} 40... Rea7 {[%clk 0:00:36.3]} 41. g4 {[%clk 0:00:38.9]} 41...
Ra1 {[%clk 0:00:36]} 42. Rb2 {[%clk 0:00:36.1]} 42... c3 {[%clk 0:00:32.6]} 43.
Rb4 {[%clk 0:00:32.2]} 43... c2 {[%clk 0:00:32]} 0-1

[Event "Late-Titled-Tuesday-Blitz-February-27-2024"]
[Site "Chess.com"]
[Date "2024.02.27"]
[Round "3"]
[White "protectiago"]
[Black "epiclord678"]
[Result "0-1"]
[WhiteElo "2089"]
[BlackElo "2396"]
[TimeControl "180+1"]
[EndTime "14:28:26 PST"]
[Termination "epiclord678 won by resignation"]

1. d4 {[%clk 0:02:58.9]} 1... Nf6 {[%clk 0:02:59.7]} 2. c4 {[%clk 0:02:58.9]}
2... g6 {[%clk 0:02:59.8]} 3. Nc3 {[%clk 0:02:55]} 3... Bg7 {[%clk 0:02:59.8]}
4. e4 {[%clk 0:02:55.2]} 4... d6 {[%clk 0:03:00.4]} 5. Be2 {[%clk 0:02:55.2]}
5... O-O {[%clk 0:03:00.9]} 6. Be3 {[%clk 0:02:55.4]} 6... e5 {[%clk 0:02:57.8]}
7. d5 {[%clk 0:02:52]} 7... Na6 {[%clk 0:02:53.5]} 8. g4 {[%clk 0:02:49.2]} 8...
Nc5 {[%clk 0:02:52.9]} 9. f3 {[%clk 0:02:48.6]} 9... a5 {[%clk 0:02:47]} 10. h4
{[%clk 0:02:48.3]} 10... c6 {[%clk 0:02:38.7]} 11. h5 {[%clk 0:02:47.7]} 11...
cxd5 {[%clk 0:02:38.6]} 12. cxd5 {[%clk 0:02:30.5]} 12... a4 {[%clk 0:02:17.6]}
13. h6 {[%clk 0:02:29.6]} 13... Bh8 {[%clk 0:02:17.2]} 14. Nh3 {[%clk
0:02:12.8]} 14... Qa5 {[%clk 0:02:04.4]} 15. Qd2 {[%clk 0:02:06]} 15... Bd7
{[%clk 0:01:54.5]} 16. Nf2 {[%clk 0:01:59.8]} 16... Rfc8 {[%clk 0:01:52.8]} 17.
Nd3 {[%clk 0:01:43.7]} 17... Nxd3+ {[%clk 0:01:48.8]} 18. Bxd3 {[%clk
0:01:43.1]} 18... a3 {[%clk 0:01:48.6]} 19. b3 {[%clk 0:01:42]} 19... Qxc3
{[%clk 0:01:48]} 20. Qxc3 {[%clk 0:01:34.4]} 20... Rxc3 {[%clk 0:01:48.3]} 21.
Kd2 {[%clk 0:01:32.5]} 21... Rcc8 {[%clk 0:01:36.6]} 22. g5 {[%clk 0:01:29.7]}
22... Nh5 {[%clk 0:01:21.8]} 23. Rhc1 {[%clk 0:01:23.5]} 23... f6 {[%clk
0:01:18.9]} 24. Rxc8+ {[%clk 0:00:51.6]} 24... Rxc8 {[%clk 0:01:18.6]} 25. Rc1
{[%clk 0:00:40.8]} 25... fxg5 {[%clk 0:01:17.2]} 26. Rxc8+ {[%clk 0:00:34.4]}
26... Bxc8 {[%clk 0:01:17.3]} 27. Bxg5 {[%clk 0:00:34.8]} 27... Bf6 {[%clk
0:01:17.5]} 28. Be3 {[%clk 0:00:28.9]} 28... Nf4 {[%clk 0:01:05.6]} 29. Bb5
{[%clk 0:00:28.7]} 29... Bd8 {[%clk 0:00:52.7]} 30. Kc3 {[%clk 0:00:27.5]} 30...
Kf7 {[%clk 0:00:49.6]} 31. Kb4 {[%clk 0:00:26.8]} 31... g5 {[%clk 0:00:49.3]}
32. Kxa3 {[%clk 0:00:26.6]} 32... Kg6 {[%clk 0:00:48.1]} 33. Be8+ {[%clk
0:00:18.3]} 33... Kxh6 {[%clk 0:00:48.4]} 34. Kb2 {[%clk 0:00:17.8]} 34... Kg7
{[%clk 0:00:48.4]} 35. Kc2 {[%clk 0:00:17.4]} 35... Kf8 {[%clk 0:00:45.2]} 36.
Bb5 {[%clk 0:00:16.2]} 36... h5 {[%clk 0:00:45.4]} 37. Bf1 {[%clk 0:00:15.5]}
37... g4 {[%clk 0:00:43.3]} 38. fxg4 {[%clk 0:00:15.2]} 38... hxg4 {[%clk
0:00:41.5]} 39. a4 {[%clk 0:00:14.8]} 39... g3 {[%clk 0:00:41.6]} 40. Bxf4
{[%clk 0:00:12.7]} 40... exf4 {[%clk 0:00:41.6]} 41. Bg2 {[%clk 0:00:12.2]}
41... Bg4 {[%clk 0:00:41.5]} 0-1

[Event "Late-Titled-Tuesday-Blitz-February-27-2024"]
[Site "Chess.com"]
[Date "2024.02.27"]
[Round "3"]
[White "ninguno46"]
[Black "ChadBiryani"]
[Result "0-1"]
[WhiteElo "2583"]
[BlackElo "2422"]
[TimeControl "180+1"]
[EndTime "14:28:42 PST"]
[Termination "ChadBiryani won by resignation"]

1. e4 {[%clk 0:02:59.5]} 1... d6 {[%clk 0:03:00.1]} 2. d4 {[%clk 0:02:59]} 2...
Nf6 {[%clk 0:03:00.7]} 3. Nc3 {[%clk 0:02:59.1]} 3... e5 {[%clk 0:03:01.2]} 4.
Nf3 {[%clk 0:02:58.2]} 4... Nbd7 {[%clk 0:03:01]} 5. Bc4 {[%clk 0:02:58.1]} 5...
Be7 {[%clk 0:03:00.8]} 6. O-O {[%clk 0:02:58]} 6... O-O {[%clk 0:03:00.7]} 7.
Re1 {[%clk 0:02:58.2]} 7... c6 {[%clk 0:02:59]} 8. a4 {[%clk 0:02:57.6]} 8... b6
{[%clk 0:02:57.7]} 9. Ba2 {[%clk 0:02:57.4]} 9... h6 {[%clk 0:02:56.2]} 10. d5
{[%clk 0:02:57.5]} 10... Bb7 {[%clk 0:02:55.6]} 11. dxc6 {[%clk 0:02:37.8]}
11... Bxc6 {[%clk 0:02:56.5]} 12. Nd5 {[%clk 0:02:37.9]} 12... Nxd5 {[%clk
0:02:50.4]} 13. Bxd5 {[%clk 0:02:36.3]} 13... Rc8 {[%clk 0:02:49.8]} 14. Bxc6
{[%clk 0:02:23.2]} 14... Rxc6 {[%clk 0:02:49.7]} 15. c3 {[%clk 0:02:23.2]} 15...
a5 {[%clk 0:02:45.9]} 16. Be3 {[%clk 0:02:19.8]} 16... Nc5 {[%clk 0:02:43.4]}
17. Bxc5 {[%clk 0:02:17.3]} 17... Rxc5 {[%clk 0:02:37.6]} 18. Re2 {[%clk
0:02:17.3]} 18... f5 {[%clk 0:02:10.5]} 19. exf5 {[%clk 0:02:08.5]} 19... Rxf5
{[%clk 0:02:09]} 20. Nd2 {[%clk 0:01:59.1]} 20... d5 {[%clk 0:02:02.8]} 21. Nb3
{[%clk 0:01:59]} 21... Rc6 {[%clk 0:02:02.5]} 22. Rd2 {[%clk 0:01:53.7]} 22...
Rd6 {[%clk 0:02:02.5]} 23. Qc2 {[%clk 0:01:36.7]} 23... Rdf6 {[%clk 0:01:37.8]}
24. Rad1 {[%clk 0:01:31.8]} 24... Qf8 {[%clk 0:01:38.1]} 25. Rf1 {[%clk
0:01:16.4]} 25... Qf7 {[%clk 0:01:30.4]} 26. Qd1 {[%clk 0:01:11.3]} 26... Kh8
{[%clk 0:01:06.1]} 27. Rxd5 {[%clk 0:00:14.7]} 27... Rxf2 {[%clk 0:01:06.1]} 28.
Rxf2 {[%clk 0:00:14.8]} 28... Rxf2 {[%clk 0:01:06.2]} 29. Rd2 {[%clk 0:00:14.5]}
29... Rf4 {[%clk 0:01:01.7]} 30. Re2 {[%clk 0:00:11.6]} 30... e4 {[%clk
0:00:55.1]} 31. g3 {[%clk 0:00:10]} 31... Rg4 {[%clk 0:00:39.7]} 32. Nd4 {[%clk
0:00:09.2]} 32... Bc5 {[%clk 0:00:36.9]} 33. Rf2 {[%clk 0:00:09.1]} 33... Qg6
{[%clk 0:00:35]} 34. Qe2 {[%clk 0:00:07.5]} 34... h5 {[%clk 0:00:24.3]} 35. Kg2
{[%clk 0:00:06.9]} 35... h4 {[%clk 0:00:23.8]} 36. Kh3 {[%clk 0:00:07.1]} 36...
Rxg3+ {[%clk 0:00:18.8]} 0-1

[Event "Late-Titled-Tuesday-Blitz-February-27-2024"]
[Site "Chess.com"]
[Date "2024.02.27"]
[Round "3"]
[White "Eloist"]
[Black "farzadbfd"]
[Result "0-1"]
[WhiteElo "2473"]
[BlackElo "2698"]
[TimeControl "180+1"]
[EndTime "14:28:44 PST"]
[Termination "farzadbfd won on time"]

1. e4 {[%clk 0:02:55]} 1... e5 {[%clk 0:03:00]} 2. Bc4 {[%clk 0:02:53.9]} 2...
Nf6 {[%clk 0:02:59.9]} 3. d3 {[%clk 0:02:54.2]} 3... Nc6 {[%clk 0:02:59.6]} 4.
Nf3 {[%clk 0:02:54.5]} 4... Bc5 {[%clk 0:02:59.1]} 5. O-O {[%clk 0:02:54.7]}
5... d6 {[%clk 0:02:57.7]} 6. c3 {[%clk 0:02:54.9]} 6... a6 {[%clk 0:02:56.3]}
7. Bb3 {[%clk 0:02:52.4]} 7... h6 {[%clk 0:02:56.5]} 8. Nbd2 {[%clk 0:02:52.2]}
8... O-O {[%clk 0:02:56.4]} 9. Re1 {[%clk 0:02:51.4]} 9... Re8 {[%clk
0:02:56.4]} 10. Nf1 {[%clk 0:02:50.5]} 10... Be6 {[%clk 0:02:53.8]} 11. Bxe6
{[%clk 0:02:48.5]} 11... Rxe6 {[%clk 0:02:53.2]} 12. d4 {[%clk 0:02:22]} 12...
exd4 {[%clk 0:02:53.2]} 13. cxd4 {[%clk 0:02:21.7]} 13... Bb4 {[%clk 0:02:53.7]}
14. d5 {[%clk 0:02:08]} 14... Bxe1 {[%clk 0:02:51.9]} 15. Nxe1 {[%clk
0:01:43.5]} 15... Rxe4 {[%clk 0:02:48.1]} 16. dxc6 {[%clk 0:01:41.9]} 16... bxc6
{[%clk 0:02:48.3]} 17. Nf3 {[%clk 0:01:30.9]} 17... Rb8 {[%clk 0:02:39.3]} 18.
Ng3 {[%clk 0:01:28.4]} 18... Re8 {[%clk 0:02:34]} 19. Qc2 {[%clk 0:01:11.2]}
19... c5 {[%clk 0:02:32.4]} 20. Bd2 {[%clk 0:01:06.3]} 20... Qd7 {[%clk
0:02:27.6]} 21. Rd1 {[%clk 0:00:57.4]} 21... Qe6 {[%clk 0:02:21.9]} 22. Bc3
{[%clk 0:00:54.9]} 22... Nd5 {[%clk 0:02:13.3]} 23. b3 {[%clk 0:00:29.7]} 23...
Nxc3 {[%clk 0:02:11.3]} 24. Qxc3 {[%clk 0:00:29.8]} 24... Rb4 {[%clk 0:01:39.4]}
25. h3 {[%clk 0:00:26]} 25... a5 {[%clk 0:01:38.8]} 26. Nh5 {[%clk 0:00:25]}
26... Qg6 {[%clk 0:01:30.1]} 27. Ng3 {[%clk 0:00:21.1]} 27... a4 {[%clk
0:01:23.2]} 28. bxa4 {[%clk 0:00:18.3]} 28... Rxa4 {[%clk 0:01:24.1]} 29. a3
{[%clk 0:00:16.6]} 29... Rea8 {[%clk 0:01:21.5]} 30. Rd3 {[%clk 0:00:14.1]}
30... Rxa3 {[%clk 0:00:52.9]} 31. Qxa3 {[%clk 0:00:13.7]} 31... Rxa3 {[%clk
0:00:53.6]} 32. Rxa3 {[%clk 0:00:14.3]} 32... Kh7 {[%clk 0:00:51.7]} 33. Ra7
{[%clk 0:00:12.4]} 33... Qb1+ {[%clk 0:00:52.2]} 34. Kh2 {[%clk 0:00:11.8]}
34... Qb8 {[%clk 0:00:52.9]} 35. Ra1 {[%clk 0:00:10.6]} 35... c4 {[%clk
0:00:53.3]} 36. Rc1 {[%clk 0:00:10.3]} 36... d5 {[%clk 0:00:50.7]} 37. Nf5
{[%clk 0:00:07.3]} 37... g6 {[%clk 0:00:47.5]} 38. Ne3 {[%clk 0:00:05.9]} 38...
c6+ {[%clk 0:00:47.1]} 39. g3 {[%clk 0:00:05.8]} 39... Qb2 {[%clk 0:00:47.1]}
40. Rc2 {[%clk 0:00:05.3]} 40... Qb1 {[%clk 0:00:44.2]} 41. Ne5 {[%clk
0:00:05.2]} 41... d4 {[%clk 0:00:39.9]} 42. N3xc4 {[%clk 0:00:04]} 42... Qxc2
{[%clk 0:00:39.9]} 0-1

[Event "Late-Titled-Tuesday-Blitz-February-27-2024"]
[Site "Chess.com"]
[Date "2024.02.27"]
[Round "3"]
[White "zsizsi99"]
[Black "Malev212"]
[Result "0-1"]
[WhiteElo "2452"]
[BlackElo "2655"]
[TimeControl "180+1"]
[EndTime "14:28:47 PST"]
[Termination "Malev212 won by checkmate"]

1. e4 {[%clk 0:03:00.9]} 1... c5 {[%clk 0:02:52.2]} 2. Nf3 {[%clk 0:02:59.7]}
2... e6 {[%clk 0:02:51.7]} 3. d4 {[%clk 0:02:59.9]} 3... cxd4 {[%clk 0:02:51.9]}
4. Nxd4 {[%clk 0:03:00.7]} 4... Nf6 {[%clk 0:02:52]} 5. Nc3 {[%clk 0:03:01]}
5... d6 {[%clk 0:02:52.3]} 6. Be2 {[%clk 0:02:58.6]} 6... Be7 {[%clk 0:02:50.1]}
7. O-O {[%clk 0:02:58.7]} 7... Nc6 {[%clk 0:02:50.2]} 8. Be3 {[%clk 0:02:57.9]}
8... Bd7 {[%clk 0:02:50.1]} 9. Kh1 {[%clk 0:02:57.3]} 9... Nxd4 {[%clk
0:02:49.4]} 10. Bxd4 {[%clk 0:02:57.2]} 10... Bc6 {[%clk 0:02:49.9]} 11. e5
{[%clk 0:02:45]} 11... dxe5 {[%clk 0:02:48.9]} 12. Bxe5 {[%clk 0:02:45.7]} 12...
Qb6 {[%clk 0:02:46.2]} 13. Bd4 {[%clk 0:02:19.2]} 13... Qc7 {[%clk 0:02:38.8]}
14. Bb5 {[%clk 0:02:00.4]} 14... Rd8 {[%clk 0:02:28.1]} 15. f4 {[%clk
0:01:38.1]} 15... O-O {[%clk 0:02:18.1]} 16. Bxc6 {[%clk 0:01:14.7]} 16... Qxc6
{[%clk 0:02:15]} 17. Ne2 {[%clk 0:01:15.3]} 17... Ng4 {[%clk 0:02:05.3]} 18. Qd3
{[%clk 0:01:07.2]} 18... Bc5 {[%clk 0:01:52.9]} 19. c3 {[%clk 0:01:07.5]} 19...
Qb6 {[%clk 0:01:38.9]} 20. Qf3 {[%clk 0:01:03.6]} 20... h5 {[%clk 0:01:30.8]}
21. Bxc5 {[%clk 0:00:57.8]} 21... Qxc5 {[%clk 0:01:29.9]} 22. Nd4 {[%clk
0:00:49.5]} 22... Qb6 {[%clk 0:01:20.6]} 23. Rab1 {[%clk 0:00:41.1]} 23... g6
{[%clk 0:01:18.2]} 24. h3 {[%clk 0:00:27.7]} 24... Nf6 {[%clk 0:01:17.5]} 25. g4
{[%clk 0:00:19.4]} 25... Rd5 {[%clk 0:01:13.5]} 26. Kg2 {[%clk 0:00:15.5]} 26...
Rfd8 {[%clk 0:01:13]} 27. Rf2 {[%clk 0:00:15.5]} 27... Qc7 {[%clk 0:01:01]} 28.
Re1 {[%clk 0:00:14.8]} 28... b5 {[%clk 0:00:59.3]} 29. a3 {[%clk 0:00:14.8]}
29... a5 {[%clk 0:00:58.3]} 30. Re3 {[%clk 0:00:08.8]} 30... b4 {[%clk
0:00:57.2]} 31. axb4 {[%clk 0:00:08.6]} 31... axb4 {[%clk 0:00:57.8]} 32. Nc2
{[%clk 0:00:08.1]} 32... bxc3 {[%clk 0:00:54.1]} 33. bxc3 {[%clk 0:00:07.6]}
33... Rd2 {[%clk 0:00:51.3]} 34. Nd4 {[%clk 0:00:07.4]} 34... Rxf2+ {[%clk
0:00:50]} 35. Kxf2 {[%clk 0:00:08.1]} 35... Nd5 {[%clk 0:00:49.5]} 36. Rd3
{[%clk 0:00:08.1]} 36... hxg4 {[%clk 0:00:48.7]} 37. hxg4 {[%clk 0:00:08.7]}
37... Nxf4 {[%clk 0:00:47.8]} 38. Re3 {[%clk 0:00:08.4]} 38... g5 {[%clk
0:00:46.3]} 39. Qe4 {[%clk 0:00:07.2]} 39... Rb8 {[%clk 0:00:44.9]} 40. Qe5
{[%clk 0:00:07.1]} 40... Rb2+ {[%clk 0:00:44.1]} 41. Kf1 {[%clk 0:00:06.5]}
41... Qb7 {[%clk 0:00:42.9]} 42. Qxg5+ {[%clk 0:00:06.4]} 42... Kf8 {[%clk
0:00:40.3]} 43. Qd8+ {[%clk 0:00:06.5]} 43... Kg7 {[%clk 0:00:39.7]} 44. Qg5+
{[%clk 0:00:07]} 44... Ng6 {[%clk 0:00:39.7]} 45. Rh3 {[%clk 0:00:05.5]} 45...
Qg2+ {[%clk 0:00:37.4]} 46. Ke1 {[%clk 0:00:05.2]} 46... Qg1# {[%clk 0:00:37.2]}
0-1